bitfinex/quotes_ETHUSD_20250511
["timestamp","ask_amount","ask_price","bid_price","bid_amount"]
[1746996663986,3.99185661,2505.1,2505.0,8.0]
[1746996664188,3.99177474,2505.2,2505.0,8.0]
[1746996664888,3.99185661,2505.1,2505.0,8.0]
[1746996665184,3.99153793,2505.3,2505.0,8.0]
[1746996665550,3.99185661,2505.1,2505.0,8.0]
[1746996665755,3.99185661,2505.1,2505.0,9.39689]
[1746996665983,3.99178822,2505.2,2505.0,9.39689]
[1746996668590,3.99185661,2505.1,2505.0,9.39689]
[1746996669097,0.8585,2505.4,2505.0,9.39689]
[1746996669098,3.99174684,2505.2,2505.0,9.39689]
[1746996669457,3.99178687,2505.2,2505.0,9.39689]
[1746996670005,0.05,2505.4,2505.1,1.198489]
[1746996670157,0.05,2505.4,2505.2,0.85371238]
[1746996670482,0.05,2505.4,2505.2,0.8537125]
[1746996670858,4.04138788,2505.4,2505.2,0.8138]
[1746996672497,4.04138788,2505.4,2505.2,1.69518]
[1746996673188,4.04138788,2505.4,2505.3,0.13996791]
[1746996673388,4.04138788,2505.4,2505.2,1.69518]
[1746996673693,4.04138788,2505.4,2505.3,0.13996791]
[1746996673999,4.04138788,2505.4,2505.2,1.69518]
[1746996674173,4.04138788,2505.4,2505.3,0.13996791]
[1746996674371,4.04138788,2505.4,2505.2,1.69518]
[1746996674571,4.04138788,2505.4,2505.3,0.13996791]
[1746996674766,4.04138788,2505.4,2505.2,1.69518]
[1746996674767,0.05,2505.4,2505.2,1.69518]
[1746996674968,0.05,2505.4,2505.3,42.7076767]
[1746996675169,0.05,2505.4,2505.3,13.97144921]
[1746996675371,0.05,2505.4,2505.3,56.56049921]
[1746996675571,3.99042195,2506.1,2505.9,0.7801]
[1746996675869,3.99042195,2506.1,2506.0,10.585]
[1746996676206,3.99042195,2506.1,2506.0,10.72311543]
[1746996677102,3.99042195,2506.1,2506.0,8.13811543]
[1746996681692,4.77362195,2506.1,2506.0,0.13811543]
[1746996681886,3.99137862,2505.4,2505.3,2.585]
[1746996682199,3.99121931,2505.5,2505.4,11.991378]
[1746996682501,3.99121931,2505.5,2505.3,12.2798]
[1746996682820,3.99121931,2505.5,2505.4,8.12342977]
[1746996683133,3.99121931,2505.5,2505.4,0.12342977]
[1746996683624,3.99137862,2505.4,2505.3,8.0]
[1746996685026,0.7715,2505.8,2505.3,10.4948]
[1746996685188,0.7715,2505.8,2505.3,8.0]
[1746996686104,3.99137862,2505.4,2505.3,8.0]
[1746996688229,3.99137862,2505.4,2505.3,8.12547499]
[1746996690192,3.99137862,2505.4,2505.3,0.12547499]
[1746996690395,3.99137862,2505.4,2505.3,10.585]
[1746996690592,3.99137862,2505.4,2505.3,10.71086463]
[1746996692431,3.99137862,2505.4,2505.3,8.12586463]
[1746996694401,4.78307862,2505.4,2505.3,0.12586463]
[1746996694603,3.62172704,2504.6,2504.3,0.8013]
[1746996694840,3.99273735,2504.6,2504.3,1.17986375]
[1746996695143,3.99291243,2504.5,2504.3,8.37856375]
[1746996695350,3.99281293,2504.5,2504.3,8.37856375]
[1746996695945,3.99297236,2504.4,2504.2,2.585]
[1746996696145,3.9916992,2505.2,2504.2,2.585]
[1746996696146,3.99313181,2504.3,2504.2,2.585]
[1746996696449,3.99313181,2504.3,2504.2,10.585]
[1746996696742,4.82555086,2504.5,2503.9,0.7578]
[1746996697043,3.99345074,2504.1,2504.0,2.585]
[1746996697246,3.99373576,2504.0,2503.8,8.0]
[1746996697810,3.99373576,2504.0,2503.7,3.3428]
[1746996698008,3.99379924,2503.9,2503.8,8.0]
[1746996699251,2.74706882,2504.5,2503.8,9.0585]
[1746996699460,3.99353731,2504.1,2503.8,9.0585]
[1746996700522,3.99362847,2504.0,2503.8,9.0585]
[1746996700744,2.74706882,2504.5,2503.5,1.5640891]
[1746996700906,3.99488654,2503.2,2502.8,3.3463]
[1746996701408,3.99488654,2503.2,2502.9,8.0]
[1746996701606,3.99488654,2503.2,2502.5,2.586]
[1746996701607,5.90925536,2503.2,2502.5,2.586]
[1746996702039,5.90925536,2503.2,2502.6,8.0]
[1746996702240,6.73955536,2503.2,2503.1,0.16565222]
[1746996702455,6.73955536,2503.2,2503.1,0.05]
[1746996702762,11.40792418,2503.2,2503.1,0.05]
[1746996703058,12.62955536,2503.2,2503.1,0.05]
[1746996703217,10.71518654,2503.2,2503.1,0.05]
[1746996703421,14.70104157,2503.2,2503.1,0.05]
[1746996703735,14.92346493,2503.2,2503.1,0.05]
[1746996703925,14.92346493,2503.2,2502.1,0.05]
[1746996703926,3.99648309,2502.2,2502.1,0.05]
[1746996704124,4.79658309,2502.2,2502.1,0.1874353]
[1746996704324,3.99648309,2502.2,2502.1,0.05]
[1746996708529,3.99627065,2502.4,2502.1,0.05]
[1746996708730,3.99627065,2502.4,2502.2,0.1374353]
[1746996709135,6.57185503,2503.2,2502.2,0.1374353]
[1746996709136,3.99571988,2502.7,2502.2,0.1374353]
[1746996709337,4.16526232,2503.0,2502.3,0.43957767]
[1746996709554,3.99526232,2503.0,2502.4,9.3570227]
[1746996709769,3.99537092,2502.9,2502.5,1.27811596]
[1746996709928,3.99537092,2502.9,2502.5,1.23816004]
[1746996710128,0.7824,2503.1,2502.6,0.13821583]
[1746996710360,3.99577446,2502.7,2502.6,0.13821583]
[1746996711331,3.99577446,2502.7,2502.4,8.8192]
[1746996711532,3.99577446,2502.7,2502.5,0.13821583]
[1746996711757,3.99584432,2502.6,2502.5,0.13821583]
[1746996712067,3.9957638,2502.7,2502.5,2.72321583]
[1746996712573,3.99549942,2502.9,2502.5,2.72321583]
[1746996712756,3.99549942,2502.9,2502.5,3.88145315]
[1746996714558,3.99549942,2502.9,2502.7,8.0]
[1746996714739,3.99528426,2503.0,2502.7,8.0]
[1746996715060,3.99520894,2503.0,2502.7,8.0]
[1746996715261,3.99512268,2503.1,2502.8,0.13563069]
[1746996715462,4.7870241,2503.4,2502.8,0.13563069]
[1746996715776,3.99510214,2503.1,2502.9,0.13563069]
[1746996715974,3.99510214,2503.1,2502.7,8.0]
[1746996716123,3.99510214,2503.1,2503.0,0.13563069]
[1746996716328,3.99523035,2503.0,2502.7,9.21428261]
[1746996716550,3.99523035,2503.0,2502.8,0.13563069]
[1746996716757,3.99523035,2503.0,2502.7,9.21428261]
[1746996716930,3.99523035,2503.0,2502.9,0.13563069]
[1746996717130,3.99523035,2503.0,2502.7,8.0]
[1746996717336,3.99552501,2502.8,2502.7,8.0]
[1746996717540,3.9954676,2502.9,2502.7,8.0]
[1746996717940,3.9954676,2502.9,2502.8,0.13563069]
[1746996718152,3.9954676,2502.9,2502.7,8.0]
[1746996718381,3.9954676,2502.9,2502.8,0.13563069]
[1746996718541,3.9954676,2502.9,2502.7,8.0]
[1746996718738,3.99504057,2503.2,2502.8,0.13563069]
[1746996718958,3.99504057,2503.2,2502.7,9.09845263]
[1746996719158,3.99504057,2503.2,2502.8,0.13377736]
[1746996719481,0.8129,2503.5,2502.7,9.09845263]
[1746996719685,3.99469284,2503.4,2502.9,0.53330305]
[1746996719869,3.99474258,2503.3,2503.0,0.03994801]
[1746996720247,3.99465514,2503.4,2503.1,0.13333848]
[1746996720647,3.99475353,2503.3,2503.1,0.13333848]
[1746996721563,3.99471839,2503.4,2503.1,0.13333848]
[1746996721983,3.99479538,2503.3,2503.1,0.13333848]
[1746996722350,3.99479538,2503.3,2502.9,0.03994805]
[1746996722549,3.99479538,2503.3,2503.0,0.13333848]
[1746996724987,3.99504614,2503.1,2503.0,0.13333848]
[1746996725165,3.99504614,2503.1,2502.8,0.7757]
[1746996725490,3.99504614,2503.1,2502.9,0.12806216]
[1746996726051,3.99493348,2503.2,2502.9,0.12806216]
[1746996726251,3.9950516,2503.1,2502.9,0.12806216]
[1746996729093,3.9950516,2503.1,2502.9,0.70545424]
[1746996729294,3.99520575,2503.0,2502.9,0.12806216]
[1746996730247,3.99536537,2502.9,2502.8,8.0]
[1746996730447,3.99536537,2502.9,2502.8,8.11900015]
[1746996733387,3.99536537,2502.9,2502.8,0.11900015]
[1746996733689,3.99576975,2502.7,2502.6,0.55]
[1746996734079,3.99576975,2502.7,2502.6,8.66900015]
[1746996735283,4.79556975,2502.7,2502.6,8.11900015]
[1746996739766,3.99530306,2503.0,2502.7,4.768432]
[1746996739967,3.99530306,2503.0,2502.8,0.12275097]
[1746996740266,3.99530306,2503.0,2502.7,0.55]
[1746996740476,3.99530306,2503.0,2502.8,0.12275097]
[1746996740676,3.99530306,2503.0,2502.7,0.55]
[1746996741010,4.16493778,2503.2,2503.0,0.55]
[1746996741207,3.99440782,2503.5,2503.2,0.55]
[1746996741494,3.99440782,2503.5,2503.4,0.55]
[1746996741658,3.99429873,2503.6,2503.4,0.55]
[1746996741855,3.9940821,2503.8,2503.3,1.308]
[1746996742099,3.9940821,2503.8,2503.4,8.12270225]
[1746996742300,3.99408874,2503.7,2503.4,0.12270225]
[1746996743627,3.99294174,2504.5,2503.4,0.12270225]
[1746996743772,3.99371733,2504.0,2503.4,0.12270225]
[1746996744103,3.99397919,2503.8,2503.4,0.12270225]
[1746996744400,3.99397919,2503.8,2503.5,0.55]
[1746996744559,3.99397919,2503.8,2503.7,0.55]
[1746996744897,3.9938344,2503.9,2503.7,0.55]
[1746996745103,0.7555,2504.3,2503.8,8.55]
[1746996745307,3.99362612,2504.0,2503.8,8.66948796]
[1746996745508,3.99362612,2504.0,2503.9,0.55]
[1746996745994,3.99362612,2504.0,2503.9,0.66948796]
[1746996747985,3.99362612,2504.0,2503.9,0.11948796]
[1746996748178,3.994363,2503.6,2503.4,8.0]
[1746996748378,3.994363,2503.6,2503.5,0.11880636]
[1746996748633,3.994363,2503.6,2503.5,0.66880636]
[1746996750022,3.99417037,2503.7,2503.6,0.55]
[1746996750223,3.99368594,2504.0,2503.7,0.8123]
[1746996750423,3.99368594,2504.0,2503.9,0.55]
[1746996750779,3.99368594,2504.0,2503.9,0.66505577]
[1746996751581,3.99330218,2504.2,2503.9,0.66505577]
[1746996751882,3.99345436,2504.1,2503.9,0.66505577]
[1746996752285,3.99361022,2504.0,2503.9,0.66505577]
[1746996753812,3.99361022,2504.0,2503.9,11.24805577]
[1746996758187,3.99361022,2504.0,2503.9,8.11505577]
[1746996758590,3.99361022,2504.0,2503.9,0.11505577]
[1746996758818,3.99424828,2503.6,2503.5,2.583]
[1746996759123,3.99424828,2503.6,2503.5,11.23688948]
[1746996759811,0.7819,2504.1,2503.6,8.55]
[1746996760009,3.99408874,2503.7,2503.6,0.55]
[1746996760344,3.99408874,2503.7,2503.6,8.65388948]
[1746996760643,3.99408874,2503.7,2503.6,0.65388948]
[1746996768048,3.99408874,2503.7,2503.6,10.79388555]
[1746996772945,0.7819,2504.1,2503.8,0.55]
[1746996773130,3.99358206,2504.1,2503.8,1.3302]
[1746996773338,3.99358206,2504.1,2504.0,8.55]
[1746996773729,3.99358206,2504.1,2504.0,10.81526977]
[1746996775676,3.9931375,2504.3,2504.0,30.50778277]
[1746996775863,3.9931375,2504.3,2504.0,5.94406805]
[1746996775864,3.99345074,2504.1,2504.0,5.94406805]
[1746996776170,3.99345074,2504.1,2504.0,0.65325656]
[1746996779667,7.07741859,2504.8,2504.3,0.55]
[1746996779668,3.99233471,2504.8,2504.3,0.55]
[1746996780000,3.99277162,2504.6,2504.5,0.55]
[1746996780337,3.99277162,2504.6,2504.5,0.65194239]
[1746996784640,3.99277162,2504.6,2504.5,0.10194239]
[1746996784839,4.82237162,2504.6,2504.5,0.10194239]
[1746996785051,3.99313181,2504.3,2504.2,8.0]
[1746996785379,3.99313181,2504.3,2504.2,8.64897339]
[1746996789353,3.99297236,2504.4,2504.3,4.543131]
[1746996789541,3.99297236,2504.4,2504.3,8.55]
[1746996789959,3.99297236,2504.4,2504.3,8.6479028]
[1746996790980,9.27349095,2504.4,2504.3,0.0979028]
[1746996791186,9.49720063,2504.4,2504.3,0.0979028]
[1746996791382,3.99456738,2503.4,2503.3,2.581]
[1746996791570,0.7881,2503.9,2503.4,8.0]
[1746996791888,3.99440782,2503.5,2503.4,8.0]
[1746996792080,3.99440782,2503.5,2503.4,8.08152712]
[1746996792280,3.99433336,2503.6,2503.4,8.08152712]
[1746996792486,3.99433336,2503.6,2503.4,0.08152712]
[1746996792688,3.99433336,2503.6,2503.5,0.55]
[1746996793163,3.99433336,2503.6,2503.5,0.63152712]
[1746996793889,4.78190498,2503.9,2503.5,0.63152712]
[1746996794188,3.99418268,2503.7,2503.5,1.75277983]
[1746996794392,3.99424828,2503.6,2503.5,1.75277983]
[1746996794550,3.99424828,2503.6,2503.5,0.63152712]
[1746996795084,4.79414828,2503.6,2503.5,0.08152712]
[1746996796498,6.70756687,2503.6,2503.5,0.08152712]
[1746996796676,3.99440782,2503.5,2503.4,8.0]
[1746996796865,0.7999,2503.3,2502.9,0.55]
[1746996797187,0.7999,2503.3,2502.9,1.324113]
[1746996797188,3.99520575,2503.0,2502.9,1.324113]
[1746996797489,3.99520575,2503.0,2502.9,0.55]
[1746996799398,3.99520575,2503.0,2502.8,8.0]
[1746996799399,3.99536537,2502.9,2502.8,8.0]
[1746996799570,3.99520575,2503.0,2502.5,5.34345294]
[1746996799900,3.99568466,2502.7,2502.6,8.55]
[1746996800054,3.99560586,2502.8,2502.6,8.55]
[1746996801153,0.9244,2503.5,2503.0,8.55]
[1746996801385,3.99456738,2503.4,2503.0,0.55]
[1746996801571,3.99456738,2503.4,2502.9,0.55]
[1746996802099,3.99486331,2503.3,2502.9,0.55]
[1746996802312,0.7544,2503.5,2502.9,0.55]
[1746996802464,3.99485089,2503.3,2502.9,0.55]
[1746996803099,3.99488654,2503.2,2502.9,0.55]
[1746996805005,3.99480203,2503.3,2502.9,0.55]
[1746996805559,3.99496438,2503.2,2502.9,0.55]
[1746996808196,3.99496438,2503.2,2503.0,0.09407891]
[1746996808696,3.99507582,2503.1,2502.9,0.55]
[1746996808894,3.99507582,2503.1,2503.0,0.09407891]
[1746996810471,3.99507582,2503.1,2502.9,0.55]
[1746996810670,3.99507582,2503.1,2503.0,0.09412758]
[1746996811496,3.99507582,2503.1,2502.8,0.55]
[1746996811792,3.99507582,2503.1,2502.9,0.09412758]
[1746996812567,4.74882715,2503.5,2502.9,0.09412758]
[1746996812767,3.9951817,2503.1,2502.9,0.09412758]
[1746996813499,3.9951817,2503.1,2503.0,0.55]
[1746996813999,3.9951817,2503.1,2503.0,0.64412758]
[1746996815601,4.7483817,2503.1,2503.0,0.09412758]
[1746996816109,3.99552501,2502.8,2502.7,8.55]
[1746996816268,3.99552501,2502.8,2502.7,8.64412758]
[1746996824588,0.7833,2503.3,2502.8,0.55]
[1746996824920,3.99474318,2503.3,2503.0,0.55]
[1746996825094,3.99474318,2503.3,2503.1,0.09587994]
[1746996825863,3.99488654,2503.2,2503.1,0.09587994]
[1746996829887,4.79488654,2503.2,2503.1,0.09587994]
[1746996830300,3.99553587,2502.8,2502.6,8.55]
[1746996830502,3.99553587,2502.8,2502.7,0.64456567]
[1746996831239,3.99527707,2503.0,2502.8,0.55]
[1746996831414,3.99507408,2503.1,2502.8,1.3005]
[1746996831610,3.99493563,2503.2,2502.8,1.3005]
[1746996831816,0.776,2503.6,2503.0,0.55]
[1746996832041,3.99497318,2503.2,2503.0,0.55]
[1746996832246,3.99507777,2503.1,2502.9,0.55]
[1746996834127,3.99497101,2503.2,2502.9,0.55]
[1746996834438,3.99460085,2503.4,2502.9,0.55]
[1746996834740,3.99472696,2503.3,2502.9,0.55]
[1746996835244,3.99490117,2503.2,2502.9,0.55]
[1746996835443,3.99474282,2503.3,2502.9,0.55]
[1746996835941,3.99501484,2503.2,2502.9,0.55]
[1746996836142,3.99480359,2503.3,2502.9,0.55]
[1746996836735,3.99488872,2503.2,2502.9,0.55]
[1746996837551,3.99520575,2503.0,2502.9,0.55]
[1746996837748,3.99456738,2503.4,2502.8,0.7505]
[1746996837928,3.99456738,2503.4,2502.9,0.55]
[1746996838111,3.99504614,2503.1,2503.0,0.09505241]
[1746996839254,3.99491543,2503.2,2503.0,0.09505241]
[1746996839416,0.8221,2504.0,2503.3,8.55]
[1746996839756,3.99424093,2503.7,2503.3,1.3773]
[1746996839954,3.99427249,2503.6,2503.4,0.09505241]
[1746996840334,3.99417373,2503.7,2503.4,0.09505241]
[1746996840556,0.8221,2504.0,2503.4,0.09505241]
[1746996840855,4.81571866,2504.0,2503.4,0.09505241]
[1746996841648,3.99429265,2503.6,2503.4,0.09505241]
[1746996841818,3.99429265,2503.6,2503.4,1.04228765]
[1746996842817,3.99440782,2503.5,2503.4,1.59228765]
[1746996844157,3.99398276,2503.8,2503.5,0.55]
[1746996844453,3.99411787,2503.7,2503.6,0.64266761]
[1746996844856,3.99398702,2503.8,2503.7,0.55]
[1746996845570,3.99398702,2503.8,2503.7,0.64266761]
[1746996847065,3.99363977,2504.0,2503.7,0.64266761]
[1746996847362,0.7687,2504.4,2503.9,0.55]
[1746996847565,3.99345074,2504.1,2504.0,0.08867711]
[1746996850538,3.99313911,2504.3,2504.0,0.08867711]
[1746996850734,3.99345074,2504.1,2504.0,0.08867711]
[1746996857955,3.99329127,2504.2,2504.1,0.55]
[1746996858148,3.99329127,2504.2,2504.1,0.62924427]
[1746996859263,3.99296317,2504.5,2504.1,0.62924427]
[1746996859477,0.7584,2504.8,2504.4,0.55]
[1746996859786,3.99218161,2504.9,2504.6,9.3725]
[1746996860089,3.99218161,2504.9,2504.8,8.0]
[1746996860294,3.99218161,2504.9,2504.7,0.07695799]
[1746996860507,3.99218161,2504.9,2504.6,1.3725]
[1746996860680,3.99218161,2504.9,2504.8,0.07695799]
[1746996860878,3.99247947,2504.8,2504.6,1.3725]
[1746996861070,3.99172251,2505.2,2504.6,2.30975]
[1746996861267,3.99246253,2504.8,2504.6,2.30975]
[1746996861888,3.99209037,2505.0,2504.6,2.30975]
[1746996862094,3.99196107,2505.1,2504.8,0.55]
[1746996862268,3.99203482,2505.0,2504.8,0.55]
[1746996864069,3.99233471,2504.8,2504.7,0.55]
[1746996865174,3.99233471,2504.8,2504.7,8.55]
[1746996868316,3.99233471,2504.8,2504.7,8.6985673]
[1746996872598,3.99233471,2504.8,2504.7,8.55]
[1746996873947,3.99233471,2504.8,2504.0,2.573]
[1746996873948,3.99345074,2504.1,2504.0,2.573]
[1746996874101,3.9933509,2504.2,2504.0,2.573]
[1746996874410,3.9933509,2504.2,2504.1,8.55]
[1746996874597,3.9933509,2504.2,2504.1,8.0]
[1746996874799,3.99320839,2504.3,2504.1,8.0]
[1746996875196,3.99320839,2504.3,2504.2,0.55]
[1746996876623,0.7698,2504.7,2504.2,0.55]
[1746996876925,3.99277445,2504.6,2504.4,0.55]
[1746996877104,3.99286181,2504.5,2504.3,0.55]
[1746996879289,4.76234241,2504.7,2504.3,0.55]
[1746996879490,3.99265351,2504.6,2504.3,0.55]
[1746996880658,3.99281631,2504.5,2504.3,0.55]
[1746996880933,3.99320901,2504.3,2504.2,0.55]
[1746996883803,3.99305112,2504.4,2504.2,0.55]
[1746996884136,3.99313181,2504.3,2504.2,0.55]
[1746996889339,3.99305134,2504.4,2504.2,8.55]
[1746996889539,4.81036706,2505.0,2504.5,8.55]
[1746996889699,0.17,2505.1,2504.4,0.55]
[1746996890234,3.99201596,2505.0,2504.5,0.03992243]
[1746996890538,3.99224611,2504.9,2504.5,0.03992243]
[1746996892640,3.99233637,2504.8,2504.5,0.03992243]
[1746996894013,3.99233637,2504.8,2504.4,0.55]
[1746996894333,3.99224219,2504.9,2504.4,0.55]
[1746996894728,3.99180419,2505.2,2504.7,0.7799]
[1746996894929,3.99186701,2505.1,2505.0,8.55]
[1746996895641,3.99186701,2505.1,2504.9,8.55]
[1746996896818,3.99178578,2505.2,2504.9,8.55]
[1746996897027,3.99178578,2505.2,2504.9,9.98979928]
[1746996897446,3.99190346,2505.1,2504.9,9.98979928]
[1746996898535,3.99201596,2505.0,2504.9,9.98979928]
[1746996899555,0.8182,2505.5,2504.9,9.98979928]
[1746996899851,4.04150926,2505.4,2505.2,0.55]
[1746996900150,3.99153793,2505.3,2505.2,0.55]
[1746996900444,3.99153793,2505.3,2505.2,8.55]
[1746996900609,3.99153793,2505.3,2505.2,9.48814147]
[1746996901615,4.04146634,2505.4,2505.3,8.55]
[1746996901822,4.04146634,2505.4,2505.3,0.55]
[1746996902552,0.05,2505.4,2505.3,0.55]
[1746996902741,4.04137862,2505.4,2505.3,0.55]
[1746996907468,0.05,2505.4,2505.3,0.55]
[1746996907630,0.05,2505.4,2505.3,33.376801]
[1746996907831,0.05,2505.4,2505.3,19.5529931]
[1746996908144,0.05,2505.4,2505.3,14.259141]
[1746996908933,4.04137862,2505.4,2505.3,8.55]
[1746996909133,4.04137862,2505.4,2505.3,8.0]
[1746996910538,4.04137862,2505.4,2504.9,4.98810969]
[1746996910539,3.99201596,2505.0,2504.9,4.98810969]
[1746996911069,4.76801596,2505.0,2504.9,2.41810969]
[1746996916269,0.776,2505.0,2504.9,2.41810969]
[1746996916506,3.99175256,2505.2,2504.9,2.41810969]
[1746996916657,3.99201596,2505.0,2504.9,2.41810969]
[1746996919584,3.99190036,2505.1,2505.0,0.55]
[1746996921071,3.99190036,2505.1,2505.0,8.55]
[1746996921467,3.99190036,2505.1,2505.0,0.55]
[1746996921898,3.99201596,2505.0,2504.9,10.41810969]
[1746996927698,3.99153793,2505.3,2505.0,0.55]
[1746996927904,4.83079666,2505.4,2505.0,1.97901097]
[1746996928107,3.99185661,2505.1,2505.0,0.55]
[1746996930902,3.99174013,2505.2,2505.0,0.55]
[1746996931101,3.99174013,2505.2,2505.0,8.55]
[1746996931318,3.99174013,2505.2,2505.0,0.55]
[1746996932685,3.9915635,2505.3,2505.0,0.55]
[1746996932686,3.99157574,2505.3,2505.0,0.55]
[1746996932880,3.99157574,2505.3,2505.0,1.98304097]
[1746996936722,3.9917186,2505.2,2505.0,1.98304097]
[1746996936919,3.99162135,2505.3,2505.0,1.98304097]
[1746996937126,4.04139725,2505.4,2505.0,0.55]
[1746996937421,3.99170673,2505.2,2505.0,0.55]
[1746996939691,0.05,2505.4,2505.0,0.55]
[1746996940192,4.04144955,2505.4,2505.0,0.55]
[1746996940487,0.05,2505.4,2505.0,0.55]
[1746996940692,0.05,2505.4,2505.2,0.55]
[1746996940992,4.04145858,2505.4,2505.2,0.55]
[1746996941426,4.04145858,2505.4,2505.0,8.55]
[1746996941624,4.04145858,2505.4,2505.0,8.58991549]
[1746996941992,4.04145858,2505.4,2505.0,8.55]
[1746996942193,4.04145858,2505.4,2505.2,0.55]
[1746996942720,0.05,2505.4,2505.3,0.8047]
[1746996942926,0.05,2505.4,2505.3,22.85723]
[1746996943130,4.04137862,2505.4,2505.3,8.0]
[1746996944329,0.05,2505.4,2505.3,8.0]
[1746996944529,0.05,2505.4,2505.3,29.7541194]
[1746996945902,0.05,2505.4,2505.3,23.8823524]
[1746996946109,0.05,2505.4,2505.3,19.5352674]
[1746996946531,0.05,2505.4,2505.3,13.7470834]
[1746996948723,0.05,2505.4,2505.3,9.6043254]
[1746996948904,0.05,2505.4,2505.3,17.3635994]
[1746996949109,0.05,2505.4,2505.3,13.1461944]
[1746996949830,4.04137862,2505.4,2505.3,8.0]
[1746996953218,0.05,2505.4,2505.3,8.0]
[1746996954040,4.04137862,2505.4,2505.3,8.0]
[1746996955841,4.04137862,2505.4,2505.3,8.55]
[1746996959135,0.05,2505.4,2505.3,8.55]
[1746996959340,0.05,2505.4,2505.3,49.85345]
[1746996959509,0.05,2505.4,2505.3,53.20735]
[1746996960137,0.05,2505.4,2505.3,55.60235]
[1746996960343,0.05,2506.4,2505.8,0.55]
[1746996960543,0.05,2506.4,2506.1,0.7832]
[1746996960702,4.03978614,2506.4,2506.3,0.55]
[1746996962919,3.99010454,2506.2,2506.1,0.55]
[1746996963307,3.98997885,2506.3,2506.1,3.094727]
[1746996963519,3.98997885,2506.3,2506.1,0.55]
[1746996963701,3.98997885,2506.3,2506.2,3.004603]
[1746996963909,3.98997885,2506.3,2506.2,12.1600633]
[1746996965544,3.98997885,2506.3,2506.2,9.7054603]
[1746996966808,3.98997885,2506.3,2506.2,8.55]
[1746996967013,3.99042298,2506.0,2505.9,2.564]
[1746996967233,3.99042298,2506.0,2505.9,10.564]
[1746996967513,3.98999723,2506.3,2506.0,12.540422]
[1746996967716,0.05,2506.4,2506.0,0.94903615]
[1746996967917,0.05,2506.4,2506.2,0.55]
[1746996968318,4.03990668,2506.4,2506.2,0.55]
[1746996968516,3.98994533,2506.3,2506.2,0.55]
[1746996968710,0.05,2506.4,2506.3,12.539945]
[1746996968917,0.05,2506.4,2506.3,8.55]
[1746996969117,0.05,2506.4,2506.3,9.44778536]
[1746996969627,0.05,2506.4,2506.3,10.21328536]
[1746996973560,0.757,2507.1,2506.3,10.21328536]
[1746996973561,0.05,2507.4,2506.4,8.6]
[1746996973744,0.05,2507.4,2507.2,0.55]
[1746996973745,4.03830145,2507.4,2507.2,0.55]
[1746996974085,4.03822845,2507.4,2507.2,0.55]
[1746996975046,4.03820708,2507.4,2507.2,0.55]
[1746996975342,3.988354,2507.3,2507.2,0.55]
[1746996975549,4.03820708,2507.4,2507.2,0.55]
[1746996975550,4.03821278,2507.4,2507.2,0.55]
[1746996976046,3.988354,2507.3,2507.2,0.55]
[1746996976252,3.98862215,2507.2,2507.0,0.55]
[1746996976570,3.9884263,2507.3,2507.0,1.52307082]
[1746996977137,3.98854715,2507.2,2507.0,1.52307082]
[1746996977339,3.9884296,2507.3,2507.0,1.52307082]
[1746996978229,3.9884296,2507.3,2507.2,0.55]
[1746996978431,4.038255,2507.4,2507.2,0.55]
[1746996978732,3.988354,2507.3,2507.2,0.55]
[1746996979762,0.05,2507.4,2507.2,0.55]
[1746996980063,0.05,2507.4,2507.3,0.55]
[1746996980481,0.05,2507.4,2507.3,9.3307]
[1746996980647,0.05,2507.4,2507.3,49.52275]
[1746996980843,0.05,2507.4,2507.3,41.873634]
[1746996981048,0.05,2507.4,2507.3,9.3307]
[1746996981249,0.05,2507.4,2507.3,10.68023861]
[1746996982185,0.05,2507.4,2507.3,14.40685361]
[1746996982373,0.05,2507.4,2507.3,13.057315]
[1746996983167,0.05,2507.4,2507.3,8.55]
[1746996983365,0.05,2507.4,2507.3,30.68313651]
[1746996983586,0.05,2507.4,2507.3,30.643258]
[1746996984663,0.05,2507.4,2507.3,8.9488354]
[1746996984869,0.05,2507.4,2507.3,45.41687166]
[1746996985187,0.05,2507.4,2507.3,32.01328925]
[1746996985367,0.05,2507.4,2507.3,21.87783225]
[1746996985755,0.05,2507.4,2507.3,10.59390225]
[1746996985955,0.05,2507.4,2507.3,10.99273765]
[1746996986491,0.05,2507.4,2507.3,17.85827025]
[1746996986795,0.05,2507.4,2507.3,10.59390225]
[1746996986971,0.05,2507.4,2507.3,41.29309725]
[1746996987810,0.05,2507.4,2507.3,10.99273765]
[1746996987949,0.05,2507.4,2507.3,50.78973065]
[1746996988356,0.05,2507.4,2507.3,10.99273765]
[1746996988895,0.05,2507.4,2507.3,51.18478765]
[1746996989883,0.05,2507.4,2507.3,37.36115025]
[1746996990084,0.05,2507.4,2507.3,37.75998565]
[1746996990278,0.05,2507.4,2507.3,10.99273765]
[1746996990483,0.05,2507.4,2507.3,41.24310665]
[1746996991479,0.05,2507.4,2507.3,15.47090092]
[1746996991690,0.05,2507.4,2507.3,53.74278765]
[1746996992003,0.05,2507.4,2507.3,55.66295092]
[1746996993377,0.05,2507.4,2507.3,53.74278765]
[1746996993563,0.05,2507.4,2507.3,13.55073765]
[1746996993765,0.05,2507.4,2507.3,53.74278765]
[1746996994997,0.05,2507.4,2507.3,55.66295092]
[1746996995293,0.05,2507.4,2507.3,53.74278765]
[1746996996089,0.05,2507.4,2507.3,13.55073765]
[1746996996288,0.05,2507.4,2507.3,23.75073765]
[1746996997080,0.05,2507.4,2507.3,26.14573765]
[1746996998204,0.05,2507.4,2507.3,66.33778765]
[1746996999572,0.05,2507.4,2507.3,26.14573765]
[1746997000306,3.98698959,2508.2,2507.8,0.55]
[1746997000503,3.98698959,2508.2,2508.1,0.55]
[1746997001776,3.98698959,2508.2,2508.1,11.390793]
[1746997001975,4.75558959,2508.2,2508.1,8.55]
[1746997002378,3.98708185,2508.1,2507.4,2.559]
[1746997002577,3.98803589,2507.5,2507.4,2.559]
[1746997002814,3.98851308,2507.2,2507.1,2.78948708]
[1746997002975,4.75711308,2507.2,2507.1,4.96499108]